[Event "Frauenbundesliga 2024-25"]
[Site "Germany"]
[Date "2024.11.17"]
[Round "2.8"]
[White "Rogule, Laura"]
[Black "Doluhanova, Evgeniya"]
[Result "1/2-1/2"]
[Annotator "RC"]
[ECO "E00"]
[WhiteElo "2247"]
[BlackElo "2261"]
[PlyCount "104"]
[EventDate "2024.11.06"]
[EventType "team-tourn"]
[EventCountry "GER"]
[SourceTitle "playchess.com"]
[Source "ChessBase"]
[SourceQuality "1"]
[TimeControl "40/5400+30:1800+30"]

1. d4 {[%emt 0:00:04]} Nf6 {[%emt 0:00:04]} 2. c4 {[%emt 0:00:17]} e6 {[%emt 0:00:04]} 3. g3 {[%emt 0:00:30]} d5 {[%emt 0:00:23]} 4. Bg2 {[%emt 0:01:00]} Bb4+ {[%emt 0:00:06]} 5. Nd2 {[%emt 0:01:45]} c6 {[%emt 0:01:21]} 6. Qc2 {[%emt 0:13:42]} O-O {[%emt 0:07:28]} 7. Ngf3 {[%emt 0:01:05]} Ne4 {[%emt 0:06:21]} 8. O-O {[%emt 0:09:13]} f5 {[%emt 0:02:50]} 9. a3 {[%emt 0:10:29]} Be7 {[%emt 0:02:20]} 10. b4 {[%emt 0:01:23]} Nd7 {[%emt 0:01:31]} 11. Bb2 {[%emt 0:03:52]} Nxd2 {[%emt 0:04:56]} 12. Nxd2 {[%emt 0:02:11]} a5 {[%emt 0:00:37]} 13. b5 {[%emt 0:05:05]} cxb5 {[%emt 0:11:28]} 14. cxd5 {[%emt 0:12:19]} Nb6 {[%emt 0:01:46]} 15. dxe6 {[%emt 0:04:00]} Bxe6 {[%emt 0:00:06]} 16. Bxb7 {[%emt 0:00:21]} Rb8 {[%emt 0:00:29]} 17. Bg2 {[%emt 0:01:07]} Na4 {[%emt 0:00:42]} 18. Rfb1 {[%emt 0:05:41]} Qd6 {[%emt 0:18:12]} 19. Qd3 {[%emt 0:03:31]} Bf6 {[%emt 0:04:12]} 20. e3 {[%emt 0:01:33]} Rfc8 {[%emt 0:03:53]} 21. Bc1 {[%emt 0:07:26]} Nc3 {[%emt 0:08:21]} 22. Rb2 {[%emt 0:01:00]} Na2 {[%emt 0:03:41]} 23. Rbxa2 {[%emt 0:08:12]} Bxa2 {[%emt 0:02:54]} 24. Qxf5 {[%emt 0:00:23]} Be6 {[%emt 0:02:18]} 25. Qd3 {[%emt 0:03:15]} Bc4 {[%emt 0:03:20]} 26. Qb1 {[%emt 0:01:32]} Bf7 {[%emt 0:02:47]} 27. Ne4 {[%emt 0:01:16]} Qe7 {[%emt 0:00:10]} 28. Bd2 {[%emt 0:01:08]} b4 {[%emt 0:01:26]} 29. axb4 {[%emt 0:00:28]} axb4 {[%emt 0:00:26]} 30. Ra6 {[%emt 0:00:33]} b3 {[%emt 0:01:13]} 31. Nxf6+ {[%emt 0:00:41]} gxf6 {[%emt 0:00:06]} 32. Be4 {[%emt 0:00:12]} Kh8 {[%emt 0:02:32]} 33. Bf5 {[%emt 0:00:45]} Rc7 {[%emt 0:00:54]} 34. Qb2 {[%emt 0:00:36]} Bc4 {[%emt 0:04:05]} 35. Ra5 {[%emt 0:00:42]} Be6 {[%emt 0:01:33]} 36. Bb1 {[%emt 0:00:34]} Bf7 {[%emt 0:01:38]} 37. e4 {[%emt 0:00:20]} Rbc8 {[%emt 0:01:41]} 38. d5 {[%emt 0:00:33]} Rc2 {[%emt 0:00:47]} 39. Bxc2 {[%emt 0:00:10]} Rxc2 {[%emt 0:00:40]} 40. Qxb3 {[%emt 0:00:47]} Rxd2 {[%emt 0:00:19]} 41. Qe3 {[%emt 0:19:40]} Rd1+ {[%emt 0:03:25]} 42. Kg2 {[%emt 0:00:04]} Qe5 {[%emt 0:10:58]} 43. Qe2 {[%emt 0:10:50]} Rd4 {[%emt 0:14:21]} 44. Ra8+ {[%emt 0:00:38]} Kg7 {[%emt 0:02:37]} 45. Qg4+ {[%emt 0:00:15]} Qg5 {[%emt 0:00:51]} 46. Qxg5+ {[%emt 0:01:38]} fxg5 {[%emt 0:00:05]} 47. Kf3 {[%emt 0:00:29]} Rxd5 {[%emt 0:00:46]} 48. exd5 {[%emt 0:00:35]} Bxd5+ {[%emt 0:00:04]} 49. Kg4 {[%emt 0:00:06]} Bxa8 {[%emt 0:00:02]} 50. Kxg5 {[%emt 0:00:08]} Bf3 {[%emt 0:00:24]} 51. h3 {[%emt 0:00:55]} Bg2 {[%emt 0:01:24]} 52. Kh4 {[%emt 0:00:42]} Kg6 {[%emt 0:00:55]} 1/2-1/2

[Event "Frauenbundesliga 2024-25"]
[Site "Germany"]
[Date "2024.11.17"]
[Round "2.8"]
[White "Gueci, Tea"]
[Black "Lubbe, Melanie"]
[Result "0-1"]
[Annotator "RC"]
[ECO "B52"]
[WhiteElo "2167"]
[BlackElo "2233"]
[PlyCount "98"]
[EventDate "2024.11.06"]
[EventType "team-tourn"]
[EventCountry "GER"]
[SourceTitle "playchess.com"]
[Source "ChessBase"]
[SourceQuality "1"]
[TimeControl "40/5400+30:1800+30"]

1. e4 {[%emt 1:31:00]} c5 {[%emt 1:31:00]} 2. Nf3 {[%emt 0:00:30]} d6 {[%emt 0:00:30]} 3. Bb5+ {[%emt 0:00:30]} Bd7 {[%emt 0:00:30]} 4. c4 {[%emt 0:00:30]} Nf6 {[%emt 0:00:30]} 5. Nc3 {[%emt 0:00:30]} g6 {[%emt 0:00:30]} 6. Bxd7+ {[%emt 0:00:30]} Qxd7 {[%emt 0:00:30]} 7. d3 {[%emt 0:00:30]} Nc6 {[%emt 0:00:30]} 8. O-O {[%emt 0:00:30]} Bg7 {[%emt 0:00:30]} 9. h3 {[%emt 0:00:30]} O-O {[%emt 0:00:30]} 10. Be3 {[%emt 0:00:30]} Ne8 {[%emt 0:00:30]} 11. Qd2 {[%emt 0:00:30]} Nc7 {[%emt 0:00:30]} 12. Nh2 {[%emt 0:00:30]} Nd4 {[%emt 0:00:30]} 13. f4 {[%emt 0:00:30]} b5 {[%emt 0:00:30]} 14. cxb5 {[%emt 0:00:30]} Ncxb5 {[%emt 0:00:30]} 15. Nxb5 {[%emt 0:00:30]} Qxb5 {[%emt 0:00:30]} 16. f5 {[%emt 0:00:30]} Rab8 {[%emt 0:00:30]} 17. Rab1 {[%emt 0:00:30]} Nc6 {[%emt 0:00:30]} 18. Ng4 {[%emt 0:00:30]} Ne5 {[%emt 0:00:30]} 19. Nxe5 {[%emt 0:00:30]} Bxe5 {[%emt 0:00:30]} 20. Rf2 {[%emt 0:00:30]} Qb4 {[%emt 0:00:30]} 21. Qe2 {[%emt 0:00:30]} a5 {[%emt 0:00:30]} 22. Qg4 {[%emt 0:00:30]} Bd4 {[%emt 0:00:30]} 23. Bxd4 {[%emt 0:00:30]} Qxd4 {[%emt 0:00:30]} 24. Qe2 {[%emt 0:00:30]} Rb4 {[%emt 0:00:30]} 25. Rc1 {[%emt 0:00:30]} Rfb8 {[%emt 0:00:30]} 26. Rc2 {[%emt 0:00:30]} a4 {[%emt 0:00:30]} 27. fxg6 {[%emt 0:00:30]} hxg6 {[%emt 0:00:30]} 28. h4 {[%emt 0:00:30]} Qe5 {[%emt 0:00:30]} 29. Qf3 {[%emt 0:00:30]} f6 {[%emt 0:00:30]} 30. Qe2 {[%emt 0:00:30]} Kg7 {[%emt 0:00:30]} 31. Qd2 {[%emt 0:00:30]} Rh8 {[%emt 0:00:30]} 32. Qf4 {[%emt 0:00:30]} Qe6 {[%emt 0:00:30]} 33. a3 {[%emt 0:00:30]} Rd4 {[%emt 0:00:30]} 34. Rc3 {[%emt 0:00:30]} d5 {[%emt 0:00:30]} 35. exd5 {[%emt 0:00:30]} Qxd5 {[%emt 0:00:30]} 36. Qe3 {[%emt 0:00:30]} Qd6 {[%emt 0:00:30]} 37. g3 {[%emt 0:00:30]} Rh5 {[%emt 0:00:30]} 38. Rg2 {[%emt 0:00:30]} Re5 {[%emt 0:00:30]} 39. Qd2 {[%emt 0:00:30]} Red5 {[%emt 0:00:30]} 40. Qc2 {[%emt 0:00:30]} Rxd3 {[%emt 0:00:30]} 41. Rxd3 {[%emt 0:30:30]} Rxd3 {[%emt 0:30:30]} 42. Qxa4 {[%emt 0:00:30]} Rd1+ {[%emt 0:00:30]} 43. Kh2 {[%emt 0:00:30]} Rd4 {[%emt 0:00:30]} 44. Qc2 {[%emt 0:00:30]} Rxh4+ {[%emt 0:00:30]} 45. Kg1 {[%emt 0:00:30]} Rh3 {[%emt 0:00:30]} 46. Qc3 {[%emt 0:00:30]} Qd1+ {[%emt 0:00:30]} 47. Kf2 {[%emt 0:00:30]} Rh1 {[%emt 0:00:30]} 48. g4 {[%emt 0:00:30]} Rf1+ {[%emt 0:00:30]} 49. Kg3 {[%emt 0:00:30]} Qd6+ {[%emt 0:00:30]} 0-1

[Event "Frauenbundesliga 2024-25"]
[Site "Germany"]
[Date "2024.11.17"]
[Round "2.9"]
[White "Koepke, Elena"]
[Black "Berzina, Ilze"]
[Result "0-1"]
[Annotator "RC"]
[ECO "B10"]
[WhiteElo "2237"]
[BlackElo "2193"]
[PlyCount "142"]
[EventDate "2024.11.06"]
[EventType "team-tourn"]
[EventCountry "GER"]
[SourceTitle "playchess.com"]
[Source "ChessBase"]
[SourceQuality "1"]
[TimeControl "40/5400+30:1800+30"]

1. e4 {[%emt 0:00:04]} c6 {[%emt 0:00:08]} 2. Nf3 {[%emt 0:00:07]} d5 {[%emt 0:00:23]} 3. d3 {[%emt 0:00:05]} Bg4 {[%emt 0:03:27]} 4. h3 {[%emt 0:00:13]} Bxf3 {[%emt 0:01:58]} 5. Qxf3 {[%emt 0:00:10]} e6 {[%emt 0:01:13]} 6. g3 {[%emt 0:01:17]} Nd7 {[%emt 0:01:45]} 7. Bg2 {[%emt 0:01:41]} Ngf6 {[%emt 0:00:47]} 8. Nd2 {[%emt 0:01:31]} Bc5 {[%emt 0:06:26]} 9. Qe2 {[%emt 0:04:20]} dxe4 {[%emt 0:05:30]} 10. Nxe4 {[%emt 0:04:59]} Nxe4 {[%emt 0:00:14]} 11. Qxe4 {[%emt 0:02:50]} O-O {[%emt 0:06:25]} 12. O-O {[%emt 0:24:43]} e5 {[%emt 0:09:01]} 13. Kh2 {[%emt 0:08:15]} Bd6 {[%emt 0:13:51]} 14. f4 {[%emt 0:10:12]} Nf6 {[%emt 0:05:16]} 15. Qf3 {[%emt 0:04:23]} exf4 {[%emt 0:07:48]} 16. Bxf4 {[%emt 0:00:16]} Bxf4 {[%emt 0:00:14]} 17. Qxf4 {[%emt 0:00:27]} Qb6 {[%emt 0:08:12]} 18. b3 {[%emt 0:10:04]} Rfe8 {[%emt 0:02:42]} 19. Rf2 {[%emt 0:05:15]} Re6 {[%emt 0:04:40]} 20. Raf1 {[%emt 0:01:14]} Rae8 {[%emt 0:01:41]} 21. d4 {[%emt 0:03:43]} Rd8 {[%emt 0:04:46]} 22. c3 {[%emt 0:00:39]} h6 {[%emt 0:02:11]} 23. Rd2 {[%emt 0:01:53]} Qa5 {[%emt 0:04:21]} 24. c4 {[%emt 0:08:10]} Rd7 {[%emt 0:01:25]} 25. Rfd1 {[%emt 0:02:04]} Qc3 {[%emt 0:03:37]} 26. Rd3 {[%emt 0:02:07]} Qb2 {[%emt 0:00:30]} 27. R1d2 {[%emt 0:00:49]} Qc1 {[%emt 0:01:14]} 28. Qb8+ {[%emt 0:01:38]} Kh7 {[%emt 0:00:40]} 29. Qxa7 {[%emt 0:01:03]} Ne4 {[%emt 0:02:30]} 30. Rd1 {[%emt 0:00:35]} Qg5 {[%emt 0:00:06]} 31. Rf1 {[%emt 0:00:36]} Nd2 {[%emt 0:01:15]} 32. Rf2 {[%emt 0:00:13]} Ne4 {[%emt 0:00:11]} 33. Rf1 {[%emt 0:00:09]} Nd2 {[%emt 0:00:06]} 34. Rf2 {[%emt 0:00:05]} Ne4 {[%emt 0:00:10]} 35. Bxe4+ {[%emt 0:01:22]} Rxe4 {[%emt 0:00:05]} 36. d5 {[%emt 0:00:40]} cxd5 {[%emt 0:01:01]} 37. cxd5 {[%emt 0:00:20]} Re1 {[%emt 0:02:06]} 38. Qd4 {[%emt 0:00:33]} Qc1 {[%emt 0:00:18]} 39. Qf4 {[%emt 0:00:37]} Rh1+ {[%emt 0:00:21]} 40. Kg2 {[%emt 0:00:03]} Qg1+ {[%emt 0:00:24]} 41. Kf3 {[%emt 0:30:19]} g6 {[%emt 0:09:31]} 42. h4 {[%emt 0:00:00]} Rh3 {[%emt 0:02:47]} 43. d6 {[%emt 0:00:00]} Qb1 {[%emt 0:07:16]} 44. Qd4 {[%emt 0:00:00]} Rh1 {[%emt 0:03:02]} 45. Rdd2 {[%emt 0:00:00]} Re1 {[%emt 0:01:38]} 46. Qd3 {[%emt 0:00:00]} Qc1 {[%emt 0:01:50]} 47. Qc4 {[%emt 0:00:00]} Qa1 {[%emt 0:02:41]} 48. Qf4 {[%emt 0:01:26]} f5 {[%emt 0:01:07]} 49. Qd4 {[%emt 0:01:41]} Qb1 {[%emt 0:00:53]} 50. Qd3 {[%emt 0:00:40]} Qa1 {[%emt 0:00:44]} 51. Qd4 {[%emt 0:01:31]} Qb1 {[%emt 0:00:15]} 52. Qa4 {[%emt 0:00:35]} Rf7 {[%emt 0:01:18]} 53. Qc4 {[%emt 0:00:24]} Rd7 {[%emt 0:01:24]} 54. Rde2 {[%emt 0:01:29]} Qd1 {[%emt 0:00:24]} 55. Qe6 {[%emt 0:00:00]} Rxd6 {[%emt 0:01:27]} 56. Qe7+ {[%emt 0:00:14]} Kg8 {[%emt 0:00:36]} 57. Qe8+ {[%emt 0:00:09]} Kg7 {[%emt 0:00:18]} 58. Qe7+ {[%emt 0:00:35]} Kg8 {[%emt 0:00:05]} 59. Qxd6 {[%emt 0:00:40]} Qxd6 {[%emt 0:00:23]} 60. Rxe1 {[%emt 0:00:02]} Qd5+ {[%emt 0:00:26]} 61. Ke2 {[%emt 0:00:26]} Qe5+ {[%emt 0:00:58]} 62. Kf1 {[%emt 0:01:07]} Qxg3 {[%emt 0:00:18]} 63. Rg2 {[%emt 0:00:28]} Qxh4 {[%emt 0:00:45]} 64. Rxg6+ {[%emt 0:00:20]} Kf7 {[%emt 0:00:04]} 65. Rg2 {[%emt 0:00:32]} f4 {[%emt 0:00:38]} 66. Rf2 {[%emt 0:00:45]} Kf6 {[%emt 0:00:37]} 67. Re8 {[%emt 0:00:32]} Qh1+ {[%emt 0:00:06]} 68. Ke2 {[%emt 0:00:03]} Qh5+ {[%emt 0:00:03]} 69. Kf1 {[%emt 0:00:04]} Qxe8 {[%emt 0:00:06]} 70. Rxf4+ {[%emt 0:00:03]} Kg5 {[%emt 0:00:13]} 71. Rc4 {[%emt 0:00:08]} b5 {[%emt 0:00:30]} 0-1

[Event "Frauenbundesliga 2024-25"]
[Site "Germany"]
[Date "2024.11.17"]
[Round "2.9"]
[White "Ziegenfuss, Antonia"]
[Black "Khrapko, Marharyta"]
[Result "1-0"]
[Annotator "RC"]
[ECO "E73"]
[WhiteElo "2187"]
[BlackElo "2156"]
[PlyCount "79"]
[EventDate "2024.11.06"]
[EventType "team-tourn"]
[EventCountry "GER"]
[SourceTitle "playchess.com"]
[Source "ChessBase"]
[SourceQuality "1"]
[TimeControl "40/5400+30:1800+30"]

1. d4 {[%emt 0:00:03]} Nf6 {[%emt 0:00:02]} 2. c4 {[%emt 0:00:09]} g6 {[%emt 0:00:01]} 3. Nc3 {[%emt 0:00:10]} Bg7 {[%emt 0:00:02]} 4. e4 {[%emt 0:00:21]} d6 {[%emt 0:00:02]} 5. Be2 {[%emt 0:00:14]} O-O {[%emt 0:00:07]} 6. Be3 {[%emt 0:00:16]} Nc6 {[%emt 0:00:23]} 7. d5 {[%emt 0:02:08]} Ne5 {[%emt 0:00:08]} 8. h3 {[%emt 0:01:20]} e6 {[%emt 0:01:27]} 9. Nf3 {[%emt 0:15:40]} Nxf3+ {[%emt 0:14:44]} 10. Bxf3 {[%emt 0:00:13]} Nd7 {[%emt 0:02:11]} 11. Qd2 {[%emt 0:03:56]} Nc5 {[%emt 0:06:19]} 12. Rd1 {[%emt 0:13:17]} a5 {[%emt 0:06:08]} 13. dxe6 {[%emt 0:02:49]} Bxe6 {[%emt 0:02:41]} 14. b3 {[%emt 0:02:33]} a4 {[%emt 0:39:06]} 15. b4 {[%emt 0:06:12]} Nd7 {[%emt 0:00:36]} 16. Be2 {[%emt 0:01:04]} c6 {[%emt 0:07:05]} 17. Qc2 {[%emt 0:06:51]} Qb8 {[%emt 0:05:41]} 18. O-O {[%emt 0:07:33]} Ne5 {[%emt 0:03:13]} 19. c5 {[%emt 0:04:05]} dxc5 {[%emt 0:03:38]} 20. Bxc5 {[%emt 0:00:16]} Re8 {[%emt 0:01:02]} 21. Nxa4 {[%emt 0:04:45]} Nd7 {[%emt 0:01:39]} 22. Rxd7 {[%emt 0:02:53]} Bxd7 {[%emt 0:01:16]} 23. Nb6 {[%emt 0:00:07]} Qc7 {[%emt 0:03:50]} 24. Nxa8 {[%emt 0:02:19]} Rxa8 {[%emt 0:00:02]} 25. Bc4 {[%emt 0:01:47]} Re8 {[%emt 0:00:41]} 26. Rd1 {[%emt 0:03:31]} Be6 {[%emt 0:00:40]} 27. Bxe6 {[%emt 0:04:00]} Rxe6 {[%emt 0:00:02]} 28. Qd3 {[%emt 0:00:11]} Re8 {[%emt 0:01:04]} 29. a3 {[%emt 0:08:03]} h5 {[%emt 0:00:10]} 30. Qd7 {[%emt 0:04:32]} Qe5 {[%emt 0:00:41]} 31. Qxb7 {[%emt 0:00:56]} Qxe4 {[%emt 0:00:02]} 32. a4 {[%emt 0:01:16]} Qc2 {[%emt 0:00:22]} 33. Qd7 {[%emt 0:00:10]} Re2 {[%emt 0:01:20]} 34. a5 {[%emt 0:01:31]} Qa4 {[%emt 0:00:25]} 35. Qd3 {[%emt 0:01:05]} Ra2 {[%emt 0:00:19]} 36. Re1 {[%emt 0:00:38]} Kh7 {[%emt 0:00:48]} 37. Re7 {[%emt 0:01:09]} Ra1+ {[%emt 0:00:30]} 38. Kh2 {[%emt 0:00:04]} Rd1 {[%emt 0:00:23]} 39. Qf3 {[%emt 0:00:20]} f5 {[%emt 0:00:38]} 40. Qc3 {[%emt 0:00:42]} 1-0

[Event "Frauenbundesliga 2024-25"]
[Site "Germany"]
[Date "2024.11.17"]
[Round "2.10"]
[White "Exler, Veronika"]
[Black "Fuchs, Judith"]
[Result "1/2-1/2"]
[Annotator "RC"]
[ECO "B13"]
[WhiteElo "2169"]
[BlackElo "2225"]
[PlyCount "64"]
[EventDate "2024.11.06"]
[EventType "team-tourn"]
[EventCountry "GER"]
[SourceTitle "playchess.com"]
[Source "ChessBase"]
[SourceQuality "1"]
[TimeControl "40/5400+30:1800+30"]

1. e4 {[%emt 0:00:02]} c6 {[%emt 0:00:05]} 2. d4 {[%emt 0:00:03]} d5 {[%emt 0:00:05]} 3. exd5 {[%emt 0:00:02]} cxd5 {[%emt 0:00:08]} 4. Bd3 {[%emt 0:00:02]} Nc6 {[%emt 0:00:11]} 5. c3 {[%emt 0:00:02]} Qc7 {[%emt 0:00:09]} 6. Ne2 {[%emt 0:00:06]} Bg4 {[%emt 0:00:29]} 7. O-O {[%emt 0:00:06]} Nf6 {[%emt 0:01:29]} 8. Qe1 {[%emt 0:00:06]} Bxe2 {[%emt 0:00:14]} 9. Qxe2 {[%emt 0:00:05]} e6 {[%emt 0:01:21]} 10. Nd2 {[%emt 0:02:52]} Bd6 {[%emt 0:02:54]} 11. g3 {[%emt 0:00:20]} a6 {[%emt 0:11:16]} 12. f4 {[%emt 0:05:11]} O-O {[%emt 0:06:50]} 13. Nf3 {[%emt 0:00:42]} b5 {[%emt 0:01:50]} 14. Bd2 {[%emt 0:10:44]} Ra7 {[%emt 0:21:25]} 15. b4 {[%emt 0:16:13]} Qb6 {[%emt 0:03:56]} 16. a4 {[%emt 0:20:14]} bxa4 {[%emt 0:00:39]} 17. Rxa4 {[%emt 0:00:01]} a5 {[%emt 0:01:53]} 18. b5 {[%emt 0:00:07]} Ne7 {[%emt 0:01:58]} 19. Ne5 {[%emt 0:00:12]} Bc7 {[%emt 0:08:47]} 20. g4 {[%emt 0:04:54]} Rd8 {[%emt 0:02:58]} 21. g5 {[%emt 0:13:25]} Ne4 {[%emt 0:00:15]} 22. Bxe4 {[%emt 0:01:47]} dxe4 {[%emt 0:00:02]} 23. Rb1 {[%emt 0:08:52]} Bxe5 {[%emt 0:04:20]} 24. fxe5 {[%emt 0:00:10]} Qb7 {[%emt 0:01:40]} 25. Rba1 {[%emt 0:12:00]} Nf5 {[%emt 0:12:11]} 26. Rxa5 {[%emt 0:00:31]} Rxa5 {[%emt 0:00:03]} 27. Rxa5 {[%emt 0:00:02]} e3 {[%emt 0:00:19]} 28. Bxe3 {[%emt 0:00:27]} Qe4 {[%emt 0:00:09]} 29. Kf2 {[%emt 0:00:12]} Qh4+ {[%emt 0:01:35]} 30. Kg2 {[%emt 0:02:25]} Qe4+ {[%emt 0:00:21]} 31. Kf2 {[%emt 0:00:01]} Qh4+ {[%emt 0:00:30]} 32. Kg2 {[%emt 0:00:26]} Qe4+ {[%emt 0:02:39]} 1/2-1/2

[Event "Frauenbundesliga 2024-25"]
[Site "Germany"]
[Date "2024.11.17"]
[Round "2.10"]
[White "Ter-Avetisjana, Agnesa Stepania"]
[Black "Nebolsina, Vera"]
[Result "0-1"]
[Annotator "RC"]
[ECO "B52"]
[WhiteElo "2125"]
[BlackElo "2201"]
[PlyCount "132"]
[EventDate "2024.11.06"]
[EventType "team-tourn"]
[EventCountry "GER"]
[SourceTitle "playchess.com"]
[Source "ChessBase"]
[SourceQuality "1"]
[TimeControl "40/5400+30:1800+30"]

1. e4 {[%emt 0:00:02]} c5 {[%emt 0:00:10]} 2. Nf3 {[%emt 0:00:06]} d6 {[%emt 0:00:23]} 3. Bb5+ {[%emt 0:00:07]} Bd7 {[%emt 0:00:18]} 4. Bxd7+ {[%emt 0:00:07]} Qxd7 {[%emt 0:00:19]} 5. O-O {[%emt 0:00:08]} Nc6 {[%emt 0:00:45]} 6. c3 {[%emt 0:00:15]} Nf6 {[%emt 0:02:47]} 7. Qe2 {[%emt 0:00:08]} g6 {[%emt 0:05:29]} 8. d4 {[%emt 0:00:19]} cxd4 {[%emt 0:01:47]} 9. cxd4 {[%emt 0:00:07]} Bg7 {[%emt 0:00:06]} 10. Nc3 {[%emt 0:00:07]} O-O {[%emt 0:00:29]} 11. h3 {[%emt 0:03:12]} Rac8 {[%emt 0:07:51]} 12. Rd1 {[%emt 0:00:48]} Ne8 {[%emt 0:08:46]} 13. Be3 {[%emt 0:06:22]} Na5 {[%emt 0:08:40]} 14. Rac1 {[%emt 0:06:30]} Nc7 {[%emt 0:10:54]} 15. d5 {[%emt 0:10:39]} b5 {[%emt 0:02:00]} 16. b4 {[%emt 0:17:39]} Nc4 {[%emt 0:01:01]} 17. Bxa7 {[%emt 0:02:17]} f5 {[%emt 0:14:26]} 18. Bd4 {[%emt 0:12:42]} Bh6 {[%emt 0:01:12]} 19. e5 {[%emt 0:08:50]} Bxc1 {[%emt 0:04:58]} 20. e6 {[%emt 0:00:42]} Qe8 {[%emt 0:00:07]} 21. Rxc1 {[%emt 0:00:07]} f4 {[%emt 0:01:30]} 22. Qe4 {[%emt 0:11:04]} Rf5 {[%emt 0:08:45]} 23. Nh4 {[%emt 0:01:15]} Rh5 {[%emt 0:03:46]} 24. g3 {[%emt 0:05:05]} Ne5 {[%emt 0:05:59]} 25. Ne2 {[%emt 0:01:04]} fxg3 {[%emt 0:09:25]} 26. fxg3 {[%emt 0:00:02]} Qf8 {[%emt 0:00:10]} 27. Nf4 {[%emt 0:04:01]} Rg5 {[%emt 0:00:04]} 28. Kh2 {[%emt 0:01:43]} Na6 {[%emt 0:00:15]} 29. Rf1 {[%emt 0:09:32]} Rc4 {[%emt 0:00:15]} 30. Rf2 {[%emt 0:00:00]} Nxb4 {[%emt 0:00:50]} 31. Kg2 {[%emt 0:00:25]} Qc8 {[%emt 0:00:16]} 32. Ne2 {[%emt 0:00:26]} Nc2 {[%emt 0:00:55]} 33. Qf4 {[%emt 0:00:24]} Rh5 {[%emt 0:00:50]} 34. Qd2 {[%emt 0:00:43]} Nxd4 {[%emt 0:00:33]} 35. Nxd4 {[%emt 0:01:02]} Qc5 {[%emt 0:00:26]} 36. Qf4 {[%emt 0:00:00]} Qxd5+ {[%emt 0:00:07]} 37. Kh2 {[%emt 0:00:00]} Qa8 {[%emt 0:00:32]} 38. Qf7+ {[%emt 0:00:29]} Nxf7 {[%emt 0:01:33]} 39. exf7+ {[%emt 0:00:02]} Kh8 {[%emt 0:00:44]} 40. f8=Q+ {[%emt 0:00:30]} Qxf8 {[%emt 0:00:04]} 41. Rxf8+ {[%emt 0:30:04]} Kg7 {[%emt 0:30:02]} 42. Ne6+ {[%emt 0:00:00]} Kh6 {[%emt 0:00:00]} 43. Rf7 {[%emt 0:00:00]} Rc2+ {[%emt 0:00:00]} 44. Ng2 {[%emt 0:00:00]} Rf5 {[%emt 0:00:00]} 45. Rxf5 {[%emt 0:00:00]} gxf5 {[%emt 0:00:00]} 46. Nd4 {[%emt 0:00:00]} Rxa2 {[%emt 0:00:00]} 47. Nxb5 {[%emt 0:00:00]} Kg5 {[%emt 0:00:00]} 48. Kg1 {[%emt 0:00:00]} Kf6 {[%emt 0:00:00]} 49. Ne3 {[%emt 0:00:00]} Rb2 {[%emt 0:00:00]} 50. Nd4 {[%emt 0:00:00]} e6 {[%emt 0:00:00]} 51. Kf1 {[%emt 0:00:00]} d5 {[%emt 0:00:00]} 52. Nf3 {[%emt 0:00:00]} Rb4 {[%emt 0:00:00]} 53. Ke2 {[%emt 0:00:00]} d4 {[%emt 0:00:00]} 54. Nd1 {[%emt 0:00:58]} e5 {[%emt 0:00:14]} 55. g4 {[%emt 0:00:09]} e4 {[%emt 0:03:28]} 56. Nd2 {[%emt 0:00:42]} Ra4 {[%emt 0:00:45]} 57. gxf5 {[%emt 0:00:48]} Ra2 {[%emt 0:00:46]} 58. Ke1 {[%emt 0:00:10]} Kxf5 {[%emt 0:00:35]} 59. Nb3 {[%emt 0:00:08]} Ke5 {[%emt 0:00:36]} 60. Nf2 {[%emt 0:00:11]} Kd5 {[%emt 0:04:37]} 61. Ng4 {[%emt 0:00:16]} e3 {[%emt 0:00:00]} 62. Nf6+ {[%emt 0:00:18]} Kc4 {[%emt 0:00:00]} 63. Nc1 {[%emt 0:00:05]} Ra1 {[%emt 0:00:00]} 64. Kd1 {[%emt 0:00:03]} d3 {[%emt 0:00:00]} 65. Ne4 {[%emt 0:00:07]} e2+ {[%emt 0:00:00]} 66. Kd2 {[%emt 0:00:05]} Rxc1 {[%emt 0:00:00]} 0-1

[Event "Frauenbundesliga 2024-25"]
[Site "Germany"]
[Date "2024.11.17"]
[Round "2.11"]
[White "Jelica, Mara"]
[Black "Endress, Anna"]
[Result "1-0"]
[Annotator "COMBH"]
[ECO "B80"]
[WhiteElo "2064"]
[BlackElo "2096"]
[PlyCount "121"]
[EventDate "2024.11.06"]
[EventType "team-tourn"]
[EventCountry "GER"]
[SourceTitle "playchess.com"]
[Source "ChessBase"]
[SourceQuality "1"]
[TimeControl "40/5400+30:1800+30"]

1. e4 {[%emt 0:00:30]} c5 {[%emt 0:00:34]} 2. Nf3 {[%emt 0:00:00]} e6 {[%emt 0:00:23]} 3. d4 {[%emt 0:00:00]} cxd4 {[%emt 0:00:05]} 4. Nxd4 {[%emt 0:00:00]} Nc6 {[%emt 0:02:43]} 5. Nc3 {[%emt 0:00:43]} Qc7 {[%emt 0:04:57]} 6. Be3 {[%emt 0:00:22]} Nf6 {[%emt 0:04:08]} 7. a3 {[%emt 0:01:40]} a6 {[%emt 0:03:42]} 8. Bd3 {[%emt 0:03:13]} Be7 {[%emt 0:02:36]} 9. Qe2 {[%emt 0:05:06]} d6 {[%emt 0:07:23]} 10. f4 {[%emt 0:01:23]} O-O {[%emt 0:09:45]} 11. O-O {[%emt 0:11:29]} Bd7 {[%emt 0:09:08]} 12. Kh1 {[%emt 0:01:10]} Rfe8 {[%emt 0:09:16]} 13. Nf3 {[%emt 0:05:54]} b5 {[%emt 0:20:19]} 14. e5 {[%emt 0:04:00]} Ng4 {[%emt 0:03:45]} 15. Ng5 {[%emt 0:04:48]} Bxg5 {[%emt 0:07:57]} 16. exd6 {[%emt 0:06:12]} Qxd6 {[%emt 0:02:09]} 17. Ne4 {[%emt 0:00:43]} Qc7 {[%emt 0:02:16]} 18. Qxg4 {[%emt 0:04:52]} Be7 {[%emt 0:00:28]} 19. Ng5 {[%emt 0:01:25]} f5 {[%emt 0:02:05]} 20. Qh5 {[%emt 0:01:23]} Bxg5 {[%emt 0:00:14]} 21. Qxg5 {[%emt 0:02:08]} Qd8 {[%emt 0:00:16]} 22. Qg3 {[%emt 0:00:41]} Qf6 {[%emt 0:00:19]} 23. Rad1 {[%emt 0:00:44]} Qxb2 {[%emt 0:05:13]} 24. Bxf5 {[%emt 0:00:48]} exf5 {[%emt 0:00:15]} 25. Rxd7 {[%emt 0:00:52]} Qc3 {[%emt 0:01:22]} 26. Bc5 {[%emt 0:05:58]} Qxg3 {[%emt 0:01:10]} 27. hxg3 {[%emt 0:00:01]} Rad8 {[%emt 0:00:41]} 28. Rfd1 {[%emt 0:01:21]} Rxd7 {[%emt 0:00:37]} 29. Rxd7 {[%emt 0:00:02]} Rd8 {[%emt 0:00:38]} 30. Rc7 {[%emt 0:01:13]} Nd4 {[%emt 0:00:08]} 31. Be7 {[%emt 0:01:21]} Rd5 {[%emt 0:00:51]} 32. Bb4 {[%emt 0:01:16]} Ne2 {[%emt 0:00:31]} 33. Kh2 {[%emt 0:01:54]} a5 {[%emt 0:00:11]} 34. Rc8+ {[%emt 0:03:08]} Kf7 {[%emt 0:00:14]} 35. Rf8+ {[%emt 0:00:30]} Kg6 {[%emt 0:01:02]} 36. Bxa5 {[%emt 0:00:09]} Rc5 {[%emt 0:00:21]} 37. Rb8 {[%emt 0:08:11]} Rxc2 {[%emt 0:00:23]} 38. Rxb5 {[%emt 0:02:20]} Nd4 {[%emt 0:00:47]} 39. Rb1 {[%emt 0:00:50]} Kf7 {[%emt 0:00:36]} 40. Rd1 {[%emt 0:01:43]} Ne2 {[%emt 0:00:30]} 41. Rd2 {[%emt 0:32:10]} Rxd2 {[%emt 0:05:15]} 42. Bxd2 {[%emt 0:00:00]} Ke6 {[%emt 0:07:03]} 43. Kh3 {[%emt 0:00:00]} Kd5 {[%emt 0:03:21]} 44. a4 {[%emt 0:00:00]} Nd4 {[%emt 0:06:03]} 45. a5 {[%emt 0:00:00]} Ne6 {[%emt 0:10:12]} 46. a6 {[%emt 0:00:00]} Nc7 {[%emt 0:00:39]} 47. a7 {[%emt 0:00:00]} Ke6 {[%emt 0:00:53]} 48. Ba5 {[%emt 0:00:00]} Na8 {[%emt 0:00:04]} 49. Kh4 {[%emt 0:00:00]} Kf6 {[%emt 0:01:00]} 50. Kh5 {[%emt 0:00:00]} h6 {[%emt 0:00:26]} 51. Bc3+ {[%emt 0:00:00]} Kf7 {[%emt 0:00:04]} 52. g4 {[%emt 0:00:00]} fxg4 {[%emt 0:00:47]} 53. f5 {[%emt 0:00:00]} g3 {[%emt 0:00:39]} 54. Kg4 {[%emt 0:00:00]} Nc7 {[%emt 0:00:32]} 55. Kxg3 {[%emt 0:00:00]} g6 {[%emt 0:00:29]} 56. f6 {[%emt 0:00:00]} Ke6 {[%emt 0:00:23]} 57. Kf3 {[%emt 0:00:00]} Na8 {[%emt 0:00:27]} 58. Ke4 {[%emt 0:00:00]} Nc7 {[%emt 0:00:21]} 59. Ba5 {[%emt 0:00:00]} Na8 {[%emt 0:00:08]} 60. Bd8 {[%emt 0:00:00]} g5 {[%emt 0:00:32]} 61. g4 {[%emt 0:00:00]} 1-0